Cogmind - Beta 13 @@@ ROGUE MODE // 2024.05.04 @ 18:10:29 Player: Lunace Result: Destroyed by P-80 Master with Gamma Rifle Performance ------------- Evolutions (7) 3500 Regions Visited (23) 4600 Robots Destroyed (262) 1310 Value Destroyed (14607) 14607 Prototype IDs (58) 1160 Alien Tech Used (3) 600 Bonus (14455) 14455 TOTAL SCORE: 40232 Bonus ------- Triggered Max Security 1000 High Alert Combat Kills 3705 Follower Combat Kills 7221 Entered Garrisons 1000 Used RIF Installer 3500 Network Hubs Disabled 400 Aligned with FarCom 300 Built Enhanced Grunts 300 Met R17 at Cetus 500 Met R17 at Research 2000 Scanned by Researcher 500 Met Sigix 2000 Friendly Fire -7971 Cogmind --------- Core Integrity 0/1300 Matter 57/300 Energy 30/100 System Corruption 29% Temperature Cool (0) Movement Core (50) Location -3/Quarantine Parts ------- > --- POWER (2) -------- (None) > --- PROPULSION (6) --- (None) > --- UTILITY (9) ------ Advanced Launcher Guidance Computer Relay Coupler [Heavy] (20) Relay Coupler [Behemoth] (10) Relay Coupler [Behemoth] (10) > --- WEAPON (4) ------- Kinetic Spear > --- INVENTORY (5) ---- Advanced Energy Well (419) Long-range Tractor Beam Linear Accelerator Advanced Datajack Improved Remote Datajack Peak State ------------ > --- POWER ------------ Quantum Reactor Improved Quantum Reactor > --- PROPULSION ------- Advanced Heavy Siege Treads Advanced Heavy Siege Treads Advanced Heavy Siege Treads > --- UTILITY ---------- High-capacity Storage Unit Advanced Energy Well Advanced Signal Interpreter Experimental Targeting Computer Improved Remote Force Field Relay Coupler [NC] Relay Coupler [Brawler] Relay Coupler [Duelist] Relay Coupler [Sentry] > --- WEAPON ----------- Helical Railgun Heavy Linear Accelerator Advanced Remote Datajack > --- INVENTORY -------- Quantum Reactor Centrium Medium Armor Plating Improved Remote Force Field Improved Remote Force Field Relay Coupler [Swarmer] Relay Coupler [Swarmer] Relay Coupler [Sentry] Relay Coupler [Demolisher] Relay Coupler [Specialist] Relay Coupler [Hunter] Relay Coupler [Hunter] Relay Coupler [Hunter] Relay Coupler [Heavy] Relay Coupler [Heavy] Relay Coupler [Behemoth] Long-range Tractor Beam Field Laser Enhanced Quantum Rifle Improved Remote Datajack Powered Hammer [Rating: 156] Favorites ----------- Power Quantum Reactor Engine F-cell Engine Power Core Enhanced Nuclear Core Reactor Quantum Reactor Propulsion Light Treads Treads Light Treads Leg Aluminum Leg Wheel Armored Huge Wheel Hover Unit Gravmag System Utility High-capacity Storage Unit Device Improved Remote Force Field Storage High-capacity Storage Unit Processor Advanced Signal Interpreter Hackware Relay Coupler [Grunt] Protection Centrium Medium Armor Plating Artifact Phase Armor Weapon Remote Datajack Energy Gun Enhanced Quantum Rifle Ballistic Gun Advanced KE Penetrator Ballistic Cannon Hypervelocity Mass Driver Launcher Heavy Proton Missile Launcher Special Weapon Remote Datajack Impact Weapon Heavy Flail Slashing Weapon Great Axe Piercing Weapon Kinetic Spear Special Melee Weapon Advanced Datajack Build | -11 -10 -10 -10 -9 -8 -8 -7 -7 -7 -7 -6 -6 -6 -6 -6 -5 -5 -5 -4 -4 -3 -3 -3 ------- Run | Yrd Mat Min Exi Min Mat Gar Fac Gar Fac Gar Fac Ext Cet Arc Hub Fac Was Fac Fac Gar Res Gar Qua Slots Evolved 14 | . . . . . 4 . 2 . . . 2 . . . . 2 . . 2 . 2 . . Power 1 | . . . . . . . . . . . . . . . . 1 . . . . . . . Propulsion 4 | . . . . . 2 . . . . . . . . . . . . . . . 2 . . Utility 7 | . . . . . 1 . 2 . . . 1 . . . . 1 . . 2 . . . . Weapon 2 | . . . . . 1 . . . . . 1 . . . . . . . . . . . . Parts Attached 314 | 7 12 . . 4 15 28 24 23 2 24 32 8 16 . 5 8 2 8 8 33 4 22 29 Power 31 | 1 1 . . 1 1 3 4 1 . 4 2 . 1 . . 1 . 1 . 8 . 1 1 Engine 10 | 1 . . . 1 1 2 2 . . 2 1 . . . . . . . . . . . . Core 9 | . 1 . . . . 1 2 1 . 2 . . . . . . . . . 2 . . . Reactor 12 | . . . . . . . . . . . 1 . 1 . . 1 . 1 . 6 . 1 1 Propulsion 48 | 2 2 . . . 6 5 5 . . 13 6 1 2 . . . . . . 3 1 . 2 Treads 31 | 2 2 . . . 6 3 3 . . 5 2 1 2 . . . . . . 3 1 . 1 Leg 13 | . . . . . . 2 1 . . 6 4 . . . . . . . . . . . . Wheel 2 | . . . . . . . 1 . . 1 . . . . . . . . . . . . . Hover 2 | . . . . . . . . . . 1 . . . . . . . . . . . . 1 Flight . | . . . . . . . . . . . . . . . . . . . . . . . . Utility 153 | 2 4 . . 2 2 8 12 15 1 3 19 3 11 . 3 6 1 7 6 14 2 13 19 Device 49 | 1 1 . . 2 1 2 4 5 . 2 3 2 4 . . 1 1 2 3 5 . 2 8 Storage 14 | 1 1 . . . 1 . 1 . . . 1 . 1 . . 2 . . 2 3 1 . . Processor 8 | . . . . . . . . . . . 1 . 1 . . 2 . 2 . . . 1 1 Hackware 55 | . . . . . . 2 7 7 1 . 12 1 . . 2 1 . 1 . 3 1 9 8 Protection 26 | . 2 . . . . 4 . 3 . 1 2 . 5 . 1 . . 2 1 3 . 1 1 Artifact 1 | . . . . . . . . . . . . . . . . . . . . . . . 1 Weapon 82 | 2 5 . . 1 6 12 3 7 1 4 5 4 2 . 2 1 1 . 2 8 1 8 7 Energy Gun 16 | 1 2 . . . 3 . 1 . . 1 2 . . . . . . . . 2 . 3 1 Energy Cannon . | . . . . . . . . . . . . . . . . . . . . . . . . Ballistic Gun 16 | 1 . . . 1 1 3 . 1 . 1 2 . 2 . . . . . . 1 . 3 . Ballistic Cannon 8 | . 1 . . . . . . . . . . 1 . . . . . . 1 3 . 1 1 Launcher 15 | . 2 . . . 1 4 1 1 . 1 . 1 . . 2 . 1 . . 1 . . . Special Weapon 11 | . . . . . . 1 1 2 1 . 1 . . . . 1 . . 1 1 1 . 1 Impact Weapon 4 | . . . . . . . . . . . . 2 . . . . . . . . . 1 1 Slashing Weapon 9 | . . . . . 1 4 . 3 . 1 . . . . . . . . . . . . . Piercing Weapon 2 | . . . . . . . . . . . . . . . . . . . . . . . 2 Special Melee Weapon 1 | . . . . . . . . . . . . . . . . . . . . . . . 1 Unidentified Prototypes 20 | . . . . 1 1 . 1 . . . 2 . 6 . 1 . . . . . . 3 5 Corrupted Parts 1 | . . . . . . . . . . 1 . . . . . . . . . . . . . System Corruption 1 | . . . . . . . . . . 1 . . . . . . . . . . . . . Parts Lost 53 | . 2 . . . . 3 1 1 . 7 2 . . . 1 . . 2 3 6 . 1 24 Power 8 | . . . . . . 1 1 . . 1 . . . . . . . . 2 . . . 3 Propulsion 9 | . . . . . . 2 . 1 . 2 . . . . . . . . . . . . 4 Utility 21 | . . . . . . . . . . 2 . . . . 1 . . 2 . 3 . . 13 Weapon 15 | . 2 . . . . . . . . 2 2 . . . . . . . 1 3 . 1 4 Highest Loss Streak 19 | . 1 . . . . 1 1 1 . 7 2 . . . 1 . . 2 3 6 . 1 19 To Critical Strikes . | . . . . . . . . . . . . . . . . . . . . . . . . Average Slot Usage (%) 86 | . 98 100 100 97 94 97 89 78 76 85 83 85 85 86 83 87 82 85 87 86 83 78 57 Engine 2 | . 3 . . 10 9 8 3 . . 2 3 . . . . . . . . . . . . Core 2 | . 10 14 14 3 . . 3 7 7 3 . . . . . . . . . 4 . . . Reactor 3 | . . . . . . . . . . . 2 6 6 6 6 11 11 10 9 5 9 9 5 Treads 15 | . 28 28 28 28 35 33 12 10 7 8 12 13 13 13 13 11 11 11 10 9 14 14 7 Wheel 1 | . . . . . . . 6 7 7 5 . . . . . . . . . . . . . Device 6 | . 5 14 14 14 18 6 2 11 3 1 . 12 6 6 6 5 11 7 7 6 4 4 2 Storage 7 | . 14 14 14 14 9 9 7 7 7 7 6 6 6 13 7 9 11 7 6 8 7 6 2 Processor 2 | . . . . . . . . . . . 4 6 5 . . 1 . 4 5 5 4 5 4 Hackware 14 | . . . . . . . 24 14 26 16 19 12 12 6 13 10 5 8 10 15 21 22 22 Protection 4 | . 7 . . . . 10 . 2 . 5 5 . 6 13 7 10 5 8 15 8 1 . . Energy Gun 5 | . 12 14 14 11 12 1 5 . . 2 8 6 4 . . . . . . 5 9 2 . Ballistic Gun 3 | . 7 . . 2 5 9 . 6 7 3 2 . 7 13 13 11 5 5 5 2 . 2 1 Ballistic Cannon 1 | . 3 . . . . . . . . . . . . . . . . . 2 5 4 3 2 Launcher 3 | . 5 14 14 11 1 6 . 1 . 6 3 5 6 6 6 5 11 11 7 1 . . . Special Weapon 3 | . . . . . . . 7 3 7 . 3 6 6 6 6 5 5 5 5 4 4 4 2 Slashing Weapon 2 | . . . . . 2 9 7 4 . 6 3 . . . . . . . . . . . . Naked Turns . | . . . . . . . . . . . . . . . . . . . . . . . . Heaviest Build 138 | 15 34 32 32 36 67 67 71 78 69 75 94 105 121 117 117 138 134 134 134 133 133 136 130 Greatest Support 240 | 40 40 40 40 40 80 80 60 28 28 150 150 150 160 160 160 160 160 160 160 160 240 240 240 Greatest Overweight (x) 38 | . . . . . . 1 2 2 2 16 1 . 1 . . . . . . 1 . . 38 Average Overweight (x) . | . . . . . . . 1 2 2 3 . . . . . . . . . . . . 1 Largest Inventory Capacity 20 | 8 15 15 15 15 20 20 20 20 20 20 20 20 20 20 20 20 20 20 20 20 20 20 20 Average Capacity 19 | 7 13 15 15 15 19 20 20 20 20 20 20 20 20 20 20 20 20 20 20 20 20 20 14 Most Carried 20 | 1 14 14 15 15 19 20 20 20 20 20 20 15 19 17 18 18 16 18 18 20 19 20 20 Average Carried 16 | . 7 14 14 14 14 19 19 19 20 17 18 11 15 16 16 16 15 16 15 18 18 19 12 Final Capacity 20 | 8 15 15 15 15 20 20 20 20 20 20 20 20 20 20 20 20 20 20 20 20 20 20 5 Final Carried 20 | 1 14 14 15 12 19 20 19 20 20 18 14 15 16 17 17 17 15 16 17 20 18 20 5 Class Distribution -------------------- 19% | Botlord-Skirmisher 17% | Mutant 14% | Bothacker-Mutant 8% | Botlord-Tank 7% | Commander-Tank 6% | Bothacker-Tank 6% | Scavenger-Skirmisher 4% | Scavenger-Tank 3% | Bothacker-Skirmisher 3% | Skirmisher Dominant Class ---------------- Mutant | -10/Materials Mutant | -10/Mines Mutant | -10/Exiles Mutant | -9/Mines Skirmisher | -8/Materials Scavenger-Skirmisher | -8/Garrison Bothacker-Mutant | -7/Factory Bothacker-Mutant | -7/Garrison Bothacker-Skirmisher | -7/Factory Mutant | -7/Garrison Botlord-Skirmisher | -6/Factory Commander-Tank | -6/Extension Commander-Tank | -6/Cetus Commander-Tank | -6/Archives Commander-Skirmisher | -6/Hub_04(d) Bothacker-Tank | -5/Factory Scavenger-Skirmisher | -5/Waste Scavenger-Skirmisher | -5/Factory Scavenger-Tank | -4/Factory Botlord-Tank | -4/Garrison Botlord-Skirmisher | -3/Research Botlord-Skirmisher | -3/Garrison Botlord-Mutant | -3/Quarantine Resources | -11 -10 -10 -10 -9 -8 -8 -7 -7 -7 -7 -6 -6 -6 -6 -6 -5 -5 -5 -4 -4 -3 -3 -3 ----------- Run | Yrd Mat Min Exi Min Mat Gar Fac Gar Fac Gar Fac Ext Cet Arc Hub Fac Was Fac Fac Gar Res Gar Qua Matter Collected 8746 | 263 458 . . 70 220 560 600 321 35 300 523 464 223 59 90 324 571 242 596 1218 147 673 789 Remotely 2792 | . . . . . . 347 40 . . . . . . . . . 571 242 596 503 . . 493 Salvage Created 11783 | 17 651 . . 140 1164 1183 383 999 . 762 541 583 179 . 682 712 1310 464 669 367 90 590 297 Parts 542 | 4 47 . . 6 76 62 28 53 . 15 33 22 14 . 18 39 9 24 30 19 3 26 14 Haulers Intercepted 4 | . 1 . . . 2 . 1 . . . . . . . . . . . . . . . . Recyclers Shooed 2 | 1 . . . . . . . . . . . . . . . 1 . . . . . . . Parts Field Recycled . | . . . . . . . . . . . . . . . . . . . . . . . . Retrieved Matter . | . . . . . . . . . . . . . . . . . . . . . . . . Parts Self-Destructed . | . . . . . . . . . . . . . . . . . . . . . . . . Prevented . | . . . . . . . . . . . . . . . . . . . . . . . . Kills | -11 -10 -10 -10 -9 -8 -8 -7 -7 -7 -7 -6 -6 -6 -6 -6 -5 -5 -5 -4 -4 -3 -3 -3 ------- Run | Yrd Mat Min Exi Min Mat Gar Fac Gar Fac Gar Fac Ext Cet Arc Hub Fac Was Fac Fac Gar Res Gar Qua Combat Hostiles Destroyed 201 | . 16 . . 3 24 29 6 18 . 4 10 6 . . . 14 6 16 18 7 2 12 10 Melee 18 | . . . . . . 6 2 3 . 3 2 2 . . . . . . . . . . . Guns 77 | . 8 . . 1 19 4 3 14 . . 3 2 . . . 4 1 3 2 2 1 5 5 Cannons 20 | . 2 . . . . . . . . . . . . . . . . . 2 5 1 7 3 AOE 80 | . 5 . . 2 5 19 1 1 . 1 5 . . . . 8 5 13 14 . . . 1 Classes Destroyed 25 | 1 4 . . . 4 4 1 1 . . 2 . 1 . . . 1 . 1 . . 3 2 Worker 10 | . 2 . . . 4 . 1 . . . 2 . . . 1 . . . . . . . . Builder 8 | . . . . . 6 . . . . . . 1 . . . 1 . . . . . . . Tunneler 2 | 1 . . . 1 . . . . . . . . . . . . . . . . . . . Hauler 4 | . 1 . . . 2 . 1 . . . . . . . . . . . . . . . . Recycler 3 | . . . . . . . . . . . 1 2 . . . . . . . . . . . Mechanic 2 | . . . . . 1 . . . . . . . 1 . . . . . . . . . . Operator 3 | . . . . . . . . . . . 1 . . . 1 1 . . . . . . . Watcher 8 | . 3 . . . 5 . . . . . . . . . . . . . . . . . . Swarmer 49 | . . . . . 11 4 . . . . 5 2 . . . 7 . 10 6 3 1 . . Cutter 4 | . . . . . . . . . . . . . . . . . . . . . . 4 . Saboteur 1 | . . . . . . . . . . . . . . . . . . . 1 . . . . Grunt 82 | . 16 . . 2 10 11 1 10 . 3 . 3 . . . 6 . 2 7 2 . 3 6 Brawler 2 | . . . . . . 1 . . . . . . . . . . . 1 . . . . . Duelist 4 | . . . . . . 2 . . . . . . . . . . 1 . . . 1 . . Protector 4 | . . . . . . . 2 . . . . . . . 2 . . . . . . . . Sentry 18 | . . . . . 3 4 2 2 . 1 . 1 . . 1 . . 1 . 2 . 1 . Demolisher 2 | . . . . . . . . . . . . . . . . . . . . . . . 2 Specialist 4 | . . . . . . 3 . . . . 1 . . . . . . . . . . . . Hunter 3 | . . . . . . . . 1 . . . 1 . . 1 . . . . . . . . Programmer 28 | . . . . . . 5 2 6 . . 4 . . . . 1 . 2 4 . . 3 1 Heavy 1 | . . . . . . . . . . . . . 1 . . . . . . . . . . Behemoth 1 | . . . . . . . . . . . . . . . . . . . . . . 1 . Compactor 6 | . . . . . . . . . . . . . . . . . 6 . . . . . . Enhanced Grunt 1 | . . . . . . . . . . . . . . . 1 . . . . . . . . Striker 1 | . . . . . . . . . . . . . . . . . . . . . . . 1 Executioner 1 | . . . . . . . . . . . . . . . . . . . . . . 1 . Thug 4 | . . . . . . . . . . . . . . . 3 . 1 . . . . . . Savage 2 | . . . . . . . . . . . . . . . 2 . . . . . . . . Butcher 1 | . . . . . . . . . . . . . . . 1 . . . . . . . . Guerrilla 1 | . . . . . . . . . . . . . . . 1 . . . . . . . . Best Kill Streak 18 | 1 8 . . 3 18 10 1 9 . 2 4 3 . . 1 6 3 6 11 2 1 3 6 Combat Bots Only 11 | . 4 . . 2 8 10 1 9 . 2 4 2 . . . 6 3 6 11 2 1 3 6 Max Kills in Single Turn 6 | 1 1 . . 2 3 3 1 1 . 1 2 1 2 . 6 3 3 5 3 1 1 1 1 Gunslinging 1 | . . . . . . . . . . . . . . . . 1 . . . . . . . Exploded 5 | . 1 . . 2 3 3 1 1 . 1 2 . . . . 3 1 5 3 . . . 1 Melee 1 | . . . . . . 1 1 1 . 1 1 1 . . . . . . . . . . . Uniques/NPCs Destroyed 2 | . . . . 1 . . . . . . . . 1 . . . . . . . . . . YI-UF0 (-9/Mines) A7 (-6/Cetus) Combat | -11 -10 -10 -10 -9 -8 -8 -7 -7 -7 -7 -6 -6 -6 -6 -6 -5 -5 -5 -4 -4 -3 -3 -3 -------- Run | Yrd Mat Min Exi Min Mat Gar Fac Gar Fac Gar Fac Ext Cet Arc Hub Fac Was Fac Fac Gar Res Gar Qua Hostile Shots Fired 1610 | . 67 . . 15 52 115 34 135 9 95 170 132 . 1 2 26 . 26 117 78 23 78 435 Missed 487 | . 14 . . 3 16 31 13 43 2 37 52 43 . 1 . 10 . 9 28 15 7 21 142 Damage Taken 16810 | . 660 . . 445 492 1328 248 821 102 778 1549 481 . . 287 250 53 334 1840 1394 226 815 4707 Core 2605 | . 76 . . 138 46 210 36 88 . 182 264 33 . . . . . 38 58 118 27 65 1226 Absorbed by Shields 5059 | . . . . . . 89 40 336 26 15 121 445 . . 87 193 49 245 35 644 179 638 1917 Reduced by Siege Mode 130 | . . . . . . . . . . . . . . . . . . . . . . . 130 Ignored by Resistances 16 | . . . . . . . . . . . . 16 . . . . . . . . . . . Regen/Repaired (Parts) 1359 | . 64 . . . 108 . . . . . 532 280 15 . 17 101 . 174 8 60 . . . Core Remaining (%) 66 | 100 . . . 14 . 53 . . . 56 . . . . 65 . . 96 . 84 . . . Volleys Fired 642 | 3 64 . . 3 23 36 44 16 3 12 56 68 12 . 6 29 9 29 29 67 8 70 55 Largest 3 | 2 2 . . 1 2 3 1 1 1 2 3 1 2 . 2 2 3 3 2 3 3 3 2 Hottest 209 | 70 90 . . 30 90 88 75 39 5 94 209 94 70 . 70 70 125 125 101 196 196 196 121 Shots Fired 1028 | 6 112 . . 20 104 61 44 61 3 14 64 68 24 . 9 45 26 34 46 104 11 98 74 Gun 546 | 6 77 . . 17 95 32 10 45 . 8 23 11 24 . 4 32 8 20 18 43 4 39 30 Cannon 141 | . 22 . . . . . . . . . . 3 . . . . . . 18 50 2 25 21 Launcher 121 | . 13 . . 3 9 29 2 4 . 2 6 5 . . 1 8 18 12 9 . . . . Special 220 | . . . . . . . 32 12 3 4 35 49 . . 4 5 . 2 1 11 5 34 23 Kinetic 525 | 3 60 . . 17 77 32 . 45 . 4 4 4 24 . 4 32 8 20 36 74 2 36 43 Thermal 105 | 3 . . . . . . 10 . . 4 19 10 . . . . . . . 19 4 28 8 Explosive 73 | . 13 . . 3 9 29 . . . . . . . . . . 9 5 5 . . . . Electromagnetic 105 | . 39 . . . 18 . 2 4 . 2 6 5 . . 1 8 9 7 4 . . . . Robot Hit Streak 19 | 5 7 . . 9 18 12 9 18 2 3 6 8 11 . 6 5 8 10 7 14 5 19 19 Robot Miss Streak 14 | 1 6 . . 1 2 5 3 2 1 3 3 3 2 . 1 5 6 9 14 3 2 3 2 Penetration Max 1 | . . . . . . . . 1 . . . . 1 . . 1 . 1 . 1 . 1 . Secondary Targets 2 | . . . . . . . . . . . . . . . . 1 . . . . . 1 . Max Gunslinging Chain 1 | . . . . . . . . . . . . . . . . 1 . . . . . 1 . Autonomous 142 | . . . . 17 78 . . 46 . 1 . . . . . . . . . . . . . Shots Hit Robots 816 | 5 63 . . 17 81 79 44 58 2 40 56 57 17 . 4 24 19 23 24 63 7 77 56 Core Hits 542 | 1 31 . . 10 55 88 24 32 . 18 18 9 17 . 48 21 24 33 63 14 3 18 15 Critical Kills 20 | . . . . . 1 . . . . . 1 2 . . . 4 . . 2 6 1 2 1 Critical Parts Destroyed 22 | . . . . . . . . . . . . 4 . . 1 1 . 1 6 5 1 3 . Critical Strikes 70 | . 4 . . . 3 6 1 . . 5 1 6 . . 1 5 . 1 8 20 2 6 1 Destroy 47 | . . . . . 1 . . . . . 1 2 . . 1 5 . 1 8 20 2 5 1 Blast 3 | . 2 . . . . . . . . . . . . . . . . . . . . 1 . Corrupt 4 | . 2 . . . 2 . . . . . . . . . . . . . . . . . . Smash 4 | . . . . . . . . . . . . 4 . . . . . . . . . . . Sever 12 | . . . . . . 6 1 . . 5 . . . . . . . . . . . . . Melee Attacks 173 | . . . . . 1 62 10 14 . 35 21 22 . . . . . . . . . . 8 Impact 22 | . . . . . . . . . . . . 22 . . . . . . . . . . . Slashing 143 | . . . . . 1 62 10 14 . 35 21 . . . . . . . . . . . . Piercing 8 | . . . . . . . . . . . . . . . . . . . . . . . 8 Sneak Attacks 10 | . . . . . . . 4 . . 1 3 2 . . . . . . . . . . . Combat Hostiles 4 | . . . . . . . . . . 1 3 . . . . . . . . . . . . Follow-up Attacks 8 | . . . . . . 8 . . . . . . . . . . . . . . . . . Damage Inflicted 34569 | 63 1399 . . 685 3366 4843 756 2022 . 2121 1338 1211 1066 . 1998 1333 2921 1707 2182 1350 149 2201 1858 Guns 11708 | 63 675 . . 463 2632 631 217 1493 . 109 395 150 1066 . 54 508 128 461 325 685 90 877 686 Cannons 3601 | . 208 . . . . . . . . . . 34 . . . . . . 204 656 32 1295 1172 Explosions 13264 | . 516 . . 222 700 2254 45 287 . 76 268 436 . . 1944 825 2793 1246 1652 . . . . Melee 5893 | . . . . . 34 1958 491 242 . 1936 675 557 . . . . . . . . . . . Ramming 103 | . . . . . . . 3 . . . . 34 . . . . . . 1 9 27 29 . Kinetic 12470 | 26 490 . . 463 2444 631 . 1493 . 67 . 34 1066 . 54 508 128 461 529 967 32 1433 1644 Thermal 2908 | 37 . . . . 65 . 217 110 . 42 437 150 . . . . 104 302 27 374 90 739 214 Explosive 8366 | . 516 . . 222 635 2254 . . . . . . . . . . 2589 755 1395 . . . . Electromagnetic 4829 | . 393 . . . 188 . 45 177 . 76 226 436 . . 1944 825 100 189 230 . . . . Impact 557 | . . . . . . . . . . . . 557 . . . . . . . . . . . Slashing 5336 | . . . . . 34 1958 491 242 . 1936 675 . . . . . . . . . . . . Piercing . | . . . . . . . . . . . . . . . . . . . . . . . . Highest Corruption 29 | . . . . . . 1 . 1 1 2 3 5 5 5 9 . 11 14 7 15 . 1 29 Average Corruption 5 | . . . . . . 1 . 1 1 1 1 4 5 5 5 . 6 9 5 11 . 1 10 Corruption Purged 5 | . . . . . . . . . . 2 3 . . . . . . . . . . . . Corruption Blocked 8 | . . . . . . . . . . . . . . . . 1 7 . . . . . . Effects 234 | . . . . . . 2 . 4 1 10 9 32 11 1 15 . 2 24 6 89 . 13 15 Message Errors 60 | . . . . . . . . . . 5 4 6 3 . 4 . . 7 . 26 . 3 2 Matter Fused 62 | . . . . . . . . 2 . 3 2 10 3 . 4 . 1 5 3 20 . 5 4 Heat Flow Errors 25 | . . . . . . . . 1 . . 1 1 3 . . . . 4 . 8 . 3 4 Energy Discharges 20 | . . . . . . . . . . . . 6 1 . . . . 3 . 10 . . . Parts Rejected 3 | . . . . . . . . . . . . 1 . . . . . . . 2 . . . Parts Fused 3 | . . . . . . . . . . 1 . . . . 1 . . . . 1 . . . Data Loss (minor) 28 | . . . . . . 1 . . 1 . 1 5 1 . 3 . 1 2 1 10 . 1 1 Data Loss (major) 13 | . . . . . . . . 1 . . . 2 . 1 . . . 2 1 4 . 1 1 Misfires 8 | . . . . . . . . . . . 1 . . . 2 . . . . 4 . . 1 Alerts 5 | . . . . . . 1 . . . 1 . 1 . . . . . . . 2 . . . Misdirections 3 | . . . . . . . . . . . . . . . . . . . . 1 . . 2 Weapon Failures 4 | . . . . . . . . . . . . . . . 1 . . 1 1 1 . . . Overload Shots . | . . . . . . . . . . . . . . . . . . . . . . . . Overflow Damage 1101 | . . . . . . 201 22 . . 101 153 358 . . 2 6 . 42 . . 19 100 97 Projectiles 197 | . . . . . . . . . . . . . . . . . . . . . . 100 97 Explosions 139 | . . . . . . 62 . . . . . 27 . . 2 6 . 42 . . . . . Melee 765 | . . . . . . 139 22 . . 101 153 331 . . . . . . . . 19 . . Knockbacks 16 | . 2 . . . . . . . . . . . . . . . . . 3 1 . 3 7 Impact . | . . . . . . . . . . . . . . . . . . . . . . . . Kinetic 16 | . 2 . . . . . . . . . . . . . . . . . 3 1 . 3 7 Secondary . | . . . . . . . . . . . . . . . . . . . . . . . . Self-Inflicted Damage 779 | . 9 . . . 40 96 . . . . . . . . 236 . 105 239 54 . . . . Shots 29 | . 3 . . . 1 4 . . . . . . . . 3 . 7 9 2 . . . . Rammed 9 | . . . . . . . . . . . . 4 . . . . . . 1 1 1 2 . Targets Rammed 11 | . . . . . . . 1 . . . . 5 . . . . . . 1 1 1 2 . Kicked . | . . . . . . . . . . . . . . . . . . . . . . . . Crushed 2 | . . . . . . . 1 . . . . 1 . . . . . . . . . . . Highest Temperature 421 | 18 216 . . . 4 124 78 247 . 138 238 159 180 . 16 180 162 236 294 421 117 351 220 Average Temperature 84 | 9 57 . . . 4 40 29 108 . 57 86 58 88 . 8 61 66 67 97 116 42 94 106 Received Heat Transfer 2681 | . 354 . . 9 162 351 87 218 9 219 94 121 . . . . . 4 84 125 16 95 733 Effects 8 | . . . . . . . . . . . 1 . . . . . . . . 4 . 3 . Shutdowns 2 | . . . . . . . . . . . . . . . . . . . . 1 . 1 . Energy Bleed 2 | . . . . . . . . . . . . . . . . . . . . . . 2 . Interference 4 | . . . . . . . . . . . 1 . . . . . . . . 3 . . . Siege Activations 2 | . . . . . . . . . . . . . . . . . . . . 1 . . 1 Total Turns 31 | . . . . . . . . . . . . . . . . . . . . 10 . . 21 Longest Duration 21 | . . . . . . . . . . . . . . . . . . . . 10 . . 21 Robots Corrupted 8 | . 1 . . . . . . . . . . 1 . . 4 2 . . . . . . . Combat Hostiles 4 | . 1 . . . . . . . . . . 1 . . . 2 . . . . . . . Parts Fried 31 | . 3 . . . 2 . . . . . 2 11 . . 9 3 1 . . . . . . Impact Corruptions 7 | . . . . . . . . . . . . 6 . . . . . . . . 1 . . Robots Melted 1 | . . . . . . . . . . . . . . . . . . . . . . . 1 Combat Hostiles 1 | . . . . . . . . . . . . . . . . . . . . . . . 1 Parts Melted 6 | . . . . . . . 2 2 . . 1 . . . . . . . . . . 1 . Heat Transferred 3146 | 111 . . . . 100 . 170 100 . 36 533 185 . . . . 101 150 50 426 111 814 259 Parts Sabotaged 1 | . . . . . . . . . . . . . . . . . . . . . . . 1 Parts Stolen . | . . . . . . . . . . . . . . . . . . . . . . . . Parts Stripped . | . . . . . . . . . . . . . . . . . . . . . . . . Power Chain Reactions 12 | . . . . . 1 . 1 1 . . 4 . . . . . 1 3 1 . . . . Alert | -11 -10 -10 -10 -9 -8 -8 -7 -7 -7 -7 -6 -6 -6 -6 -6 -5 -5 -5 -4 -4 -3 -3 -3 ------- Run | Yrd Mat Min Exi Min Mat Gar Fac Gar Fac Gar Fac Ext Cet Arc Hub Fac Was Fac Fac Gar Res Gar Qua Peak Influence 2442 | 5 347 82 . 95 725 1688 908 1514 908 829 440 1206 800 460 943 969 510 893 788 2442 1551 2287 1602 Initial 1373 | . 3 82 . . . 373 886 492 794 635 434 179 628 300 161 462 339 357 415 530 1373 978 1286 Average 806 | 1 184 82 . 43 412 914 694 1051 864 744 300 733 770 433 484 532 451 617 517 1265 1416 1557 1494 Maximum Alert Level 5 | . 1 . . . 3 5 3 4 3 3 2 4 3 2 3 3 2 3 3 5 4 5 5 Low Security (%) 9 | 100 59 100 . 100 16 . . . . . 15 5 . . 4 . . . . . . . . Level 1 12 | . 40 . . . 31 9 . . . . 63 4 . 23 4 16 25 29 . . . . . Level 2 27 | . . . . . 36 33 56 17 . 25 21 47 7 76 87 57 74 26 96 21 . . . Level 3 23 | . . . . . 15 17 43 43 100 74 . 14 92 . 3 25 . 44 3 34 . 3 . Level 4 16 | . . . . . . 30 . 39 . . . 27 . . . . . . . 11 100 50 . Level 5 8 | . . . . . . 9 . . . . . . . . . . . . . 32 . 45 . High Security . | . . . . . . . . . . . . . . . . . . . . . . . . Max Security 2 | . . . . . . . . . . . . . . . . . . . . . . . 99 Squads Dispatched 55 | . 4 . . . . . 12 . . . 5 2 . . 2 3 . 1 5 . 1 . 20 Investigation 4 | . 2 . . . . . 1 . . . . . . . . . . . . . 1 . . Extermination 11 | . . . . . . . 4 . . . 3 . . . . 1 . 1 2 . . . . Reinforcement 11 | . 2 . . . . . 4 . . . 2 1 . . 1 . . . 1 . . . . Assault 28 | . . . . . . . 3 . . . . 1 . . 1 2 . . 1 . . . 20 Garrison 1 | . . . . . . . . . . . . . . . . . . . 1 . . . . Intercept . | . . . . . . . . . . . . . . . . . . . . . . . . Searches Triggered . | . . . . . . . . . . . . . . . . . . . . . . . . Construction Impeded 1 | . . . . . . . . . . . . 1 . . . . . . . . . . . Haulers Reinforced 2 | . . . . . . . 1 . . . 1 . . . . . . . . . . . . Active Scanning Responses . | . . . . . . . . . . . . . . . . . . . . . . . . Cargo Convoy Interrupts 1 | . . . . . . . . . . . 1 . . . . . . . . . . . . Alert ID Control Effect 38 | . . . . . . . . . . . . . . . . . . . . . 2 17 19 Stealth | -11 -10 -10 -10 -9 -8 -8 -7 -7 -7 -7 -6 -6 -6 -6 -6 -5 -5 -5 -4 -4 -3 -3 -3 --------- Run | Yrd Mat Min Exi Min Mat Gar Fac Gar Fac Gar Fac Ext Cet Arc Hub Fac Was Fac Fac Gar Res Gar Qua Distress Signals 13 | . 1 . . . 1 . 1 . . . 2 2 2 . 1 . . . . . 3 . . Communications Jammed 261 | . . . . . . . . . . . 175 . . . 63 18 . . . . . . 5 Distress Signals 261 | . . . . . . . . . . . 175 . . . 63 18 . . . . . . 5 Times Spotted 554 | . 25 . . 4 31 31 32 31 5 17 47 39 10 3 10 22 5 17 26 21 18 54 106 Peak Tracking Total 25 | . 4 . . 3 7 11 6 6 2 7 13 4 5 1 5 9 2 5 6 3 6 7 25 Tactical Retreats 22 | . . . . . 4 3 . 2 . 2 1 4 . . . 1 . . . 2 . 1 2 Traps | -11 -10 -10 -10 -9 -8 -8 -7 -7 -7 -7 -6 -6 -6 -6 -6 -5 -5 -5 -4 -4 -3 -3 -3 ------- Run | Yrd Mat Min Exi Min Mat Gar Fac Gar Fac Gar Fac Ext Cet Arc Hub Fac Was Fac Fac Gar Res Gar Qua Traps Triggered 29 | . 2 . . . . 4 1 5 . 4 3 2 . . . 2 . . 1 3 . 1 1 Indirectly 2 | . . . . . . . . 2 . . . . . . . . . . . . . . . Trap Hack Attempts . | . . . . . . . . . . . . . . . . . . . . . . . . Triggered . | . . . . . . . . . . . . . . . . . . . . . . . . Disarmed . | . . . . . . . . . . . . . . . . . . . . . . . . Reprogrammed . | . . . . . . . . . . . . . . . . . . . . . . . . Reused . | . . . . . . . . . . . . . . . . . . . . . . . . Traps Extracted . | . . . . . . . . . . . . . . . . . . . . . . . . Installed . | . . . . . . . . . . . . . . . . . . . . . . . . Triggered . | . . . . . . . . . . . . . . . . . . . . . . . . Machines | -11 -10 -10 -10 -9 -8 -8 -7 -7 -7 -7 -6 -6 -6 -6 -6 -5 -5 -5 -4 -4 -3 -3 -3 ---------- Run | Yrd Mat Min Exi Min Mat Gar Fac Gar Fac Gar Fac Ext Cet Arc Hub Fac Was Fac Fac Gar Res Gar Qua Machines Disabled 83 | . 1 . . . 2 9 . 4 . 1 2 3 . . 24 5 . 3 2 10 2 6 9 Max in Single Turn 11 | . 1 . . . 1 2 . 1 . 1 1 1 . . 11 4 . 2 1 2 . 1 1 Garrison Access 2 | . . . . . . . . . . . . . . . 2 . . . . . . . . Garrison Relay 21 | . . . . . . 6 . 4 . 1 . . . . . . . . . 5 . 5 . Phase Generator 2 | . . . . . . 1 . . . . . . . . . . . . . 1 . . . Network Hub 2 | . . . . . . . . . . . . . . . 2 . . . . . . . . Machines Repaired . | . . . . . . . . . . . . . . . . . . . . . . . . Machines Dismantled . | . . . . . . . . . . . . . . . . . . . . . . . . Machines Sabotaged . | . . . . . . . . . . . . . . . . . . . . . . . . Overloaded Fab Kills . | . . . . . . . . . . . . . . . . . . . . . . . . Hacking | -11 -10 -10 -10 -9 -8 -8 -7 -7 -7 -7 -6 -6 -6 -6 -6 -5 -5 -5 -4 -4 -3 -3 -3 --------- Run | Yrd Mat Min Exi Min Mat Gar Fac Gar Fac Gar Fac Ext Cet Arc Hub Fac Was Fac Fac Gar Res Gar Qua Machines Accessed 77 | . 7 . 2 1 11 1 9 2 2 2 16 . 3 . 3 3 . 4 2 2 4 3 . Terminals 52 | . 6 . . . 9 1 5 2 1 2 9 . 3 . 2 2 . 2 1 2 2 3 . Fabricators 7 | . . . . . . . 2 . . . 3 . . . . 1 . . . . 1 . . Repair Stations 6 | . 1 . . . 1 . 1 . . . 2 . . . . . . 1 . . . . . Recycling Units 1 | . . . . . . . . . . . 1 . . . . . . . . . . . . Scanalyzers . | . . . . . . . . . . . . . . . . . . . . . . . . Garrison Access 8 | . . . . . 1 . 1 . 1 . 1 . . . 1 . . 1 1 . 1 . . Total Hacks 197 | . 23 . 2 1 30 2 22 3 8 3 35 . 6 . 9 13 . 14 5 4 14 3 . Successful 94 | . 11 . 2 1 15 1 10 1 6 1 17 . . . 5 4 . 7 4 2 4 3 . Failed 103 | . 12 . . . 15 1 12 2 2 2 18 . 6 . 4 9 . 7 1 2 10 . . Catastrophic 25 | . 3 . . . 4 1 1 1 . . 4 . 3 . 2 1 . 1 . 2 2 . . Database Lockouts . | . . . . . . . . . . . . . . . . . . . . . . . . Manual 140 | . 21 . 1 . 27 . 18 . 6 . 26 . 1 . 8 7 . 10 3 . 12 . . Terminals 145 | . 21 . . . 27 2 10 3 6 3 21 . 6 . 7 10 . 10 1 4 11 3 . Fabricators 20 | . . . . . . . 9 . . . 6 . . . . 3 . . . . 2 . . Repair Stations 11 | . 2 . . . 2 . 2 . . . 3 . . . . . . 2 . . . . . Recycling Units 2 | . . . . . . . . . . . 2 . . . . . . . . . . . . Scanalyzers . | . . . . . . . . . . . . . . . . . . . . . . . . Garrison Access 16 | . . . . . 1 . 1 . 2 . 3 . . . 2 . . 2 4 . 1 . . Terminal Hacks 27 | . 4 . 2 1 3 1 1 1 2 1 4 . . . 1 1 . . . 2 . 3 . Record 2 | . . . 1 . . . . . . . 1 . . . . . . . . . . . . Part Schematic 1 | . . . . . . . 1 . . . . . . . . . . . . . . . . Prototype ID Bank 1 | . . . . . 1 . . . . . . . . . . . . . . . . . . Open Door 3 | . . . . 1 . . . . . . 1 . . . . . . . . . . 1 . Emergency Access Points 4 | . . . . . . 1 . 1 . . . . . . . . . . . 1 . 1 . Terminal Index 4 | . 1 . . . 1 . . . 1 . 1 . . . . . . . . . . . . Unreport Threat 1 | . . . . . . . . . . . 1 . . . . . . . . . . . . Locate Traps 2 | . 1 . . . . . . . . . . . . . . 1 . . . . . . . Registered Components 1 | . 1 . . . . . . . . . . . . . . . . . . . . . . Zone Layout 4 | . 1 . . . 1 . . . 1 . . . . . 1 . . . . . . . . Patrol Navigation 1 | . . . . . . . . . . . . . . . . . . . . . . 1 . Security Stations 2 | . . . . . . . . . . 1 . . . . . . . . . 1 . . . Derelict Proto ID Bank 1 | . . . 1 . . . . . . . . . . . . . . . . . . . . Fabricator Hacks 7 | . . . . . . . 3 . . . 3 . . . . . . . . . 1 . . Network Status 3 | . . . . . . . 1 . . . 1 . . . . . . . . . 1 . . Load Schematic 1 | . . . . . . . 1 . . . . . . . . . . . . . . . . Build 3 | . . . . . . . 1 . . . 2 . . . . . . . . . . . . Repair Station Hacks 6 | . 2 . . . 2 . . . . . . . . . . . . 2 . . . . . Scan Component 3 | . 1 . . . 1 . . . . . . . . . . . . 1 . . . . . Repair 3 | . 1 . . . 1 . . . . . . . . . . . . 1 . . . . . Recycling Unit Hacks . | . . . . . . . . . . . . . . . . . . . . . . . . Scanalyzer . | . . . . . . . . . . . . . . . . . . . . . . . . Garrison Access Hacks 10 | . . . . . 1 . 1 . 2 . . . . . 1 . . 2 2 . 1 . . Unlock Access 6 | . . . . . 1 . 1 . 1 . . . . . . . . 1 1 . 1 . . Seal Access 1 | . . . . . . . . . . . . . . . 1 . . . . . . . . Coupler Status 3 | . . . . . . . . . 1 . . . . . . . . 1 1 . . . . Unauthorized Hacks 44 | . 5 . . . 9 . 5 . 2 . 10 . . . 3 3 . 3 2 . 2 . . Terminals 36 | . 5 . . . 9 . 1 . 2 . 7 . . . 3 3 . 3 1 . 2 . . Assimilate 1 | . 1 . . . . . . . . . . . . . . . . . . . . . . Botnet 27 | . 3 . . . 8 . 1 . 1 . 6 . . . 2 2 . 2 . . 2 . . Disrupt 1 | . . . . . . . . . . . . . . . . . . . 1 . . . . Operators 7 | . 1 . . . 1 . . . 1 . 1 . . . 1 1 . 1 . . . . . Fabricators 3 | . . . . . . . 3 . . . . . . . . . . . . . . . . Report 1 | . . . . . . . 1 . . . . . . . . . . . . . . . . Fabnet 1 | . . . . . . . 1 . . . . . . . . . . . . . . . . Haulers 1 | . . . . . . . 1 . . . . . . . . . . . . . . . . Repair Stations 2 | . . . . . . . 1 . . . 1 . . . . . . . . . . . . Mechanics 2 | . . . . . . . 1 . . . 1 . . . . . . . . . . . . Recycling Units 2 | . . . . . . . . . . . 2 . . . . . . . . . . . . Monitor 1 | . . . . . . . . . . . 1 . . . . . . . . . . . . Recyclers 1 | . . . . . . . . . . . 1 . . . . . . . . . . . . Scanalyzers . | . . . . . . . . . . . . . . . . . . . . . . . . Garrison Access 1 | . . . . . . . . . . . . . . . . . . . 1 . . . . Restock 1 | . . . . . . . . . . . . . . . . . . . 1 . . . . Data Cores Recovered 2 | . . . . . . . . . 1 . 1 . . . . . . . . . . . . Used 1 | . . . . . . . . . 1 . . . . . . . . . . . . . . Hacking Detections 64 | . 7 . . . 9 1 8 2 2 2 14 . 4 . 3 3 . 2 2 1 3 1 . Full Trace Events 2 | . . . . . . 1 1 . . . . . . . . . . . . . . . . Feedback Events . | . . . . . . . . . . . . . . . . . . . . . . . . Feedback Blocked . | . . . . . . . . . . . . . . . . . . . . . . . . Robot Schematics Acquired . | . . . . . . . . . . . . . . . . . . . . . . . . Robots Built 3 | . . . . . . . . . . . 3 . . . . . . . . . . . . Authchips . | . . . . . . . . . . . . . . . . . . . . . . . . Time 67 | . . . . . . . . . . . 67 . . . . . . . . . . . . Total Robot Build Rating 12 | . . . . . . . . . . . 12 . . . . . . . . . . . . Part Schematics Acquired 1 | . . . . . . . 1 . . . . . . . . . . . . . . . . Parts Built 4 | . . . . . . . 2 . . . 2 . . . . . . . . . . . . Authchips . | . . . . . . . . . . . . . . . . . . . . . . . . Time 212 | . . . . . . . 84 . . . 128 . . . . . . . . . . . . Total Part Build Rating 24 | . . . . . . . 8 . . . 16 . . . . . . . . . . . . Parts Repaired 3 | . 1 . . . 1 . . . . . . . . . . . . 1 . . . . . Time 126 | . 26 . . . 26 . . . . . . . . . . . . 74 . . . . . Parts Recycled . | . . . . . . . . . . . . . . . . . . . . . . . . Recycled Matter . | . . . . . . . . . . . . . . . . . . . . . . . . Retrieved Matter . | . . . . . . . . . . . . . . . . . . . . . . . . Retrieved Components . | . . . . . . . . . . . . . . . . . . . . . . . . Parts Scanalyzed . | . . . . . . . . . . . . . . . . . . . . . . . . Part Schematics Acquired . | . . . . . . . . . . . . . . . . . . . . . . . . Parts Damaged . | . . . . . . . . . . . . . . . . . . . . . . . . Bothacking | -11 -10 -10 -10 -9 -8 -8 -7 -7 -7 -7 -6 -6 -6 -6 -6 -5 -5 -5 -4 -4 -3 -3 -3 ------------ Run | Yrd Mat Min Exi Min Mat Gar Fac Gar Fac Gar Fac Ext Cet Arc Hub Fac Was Fac Fac Gar Res Gar Qua Used RIF Installer 7 | . . . . . . 1 . 2 . 1 . . . . . . . . . 2 . 1 . Code Merge 1 | . . . . . . . . . . . . . . . . . . . . . . 1 . Command Fork 1 | . . . . . . . . 1 . . . . . . . . . . . . . . . Signal Jammer 1 | . . . . . . . . . . 1 . . . . . . . . . . . . . Robot Detection 1 | . . . . . . . . . . . . . . . . . . . . 1 . . . Alert ID Control 1 | . . . . . . . . . . . . . . . . . . . . 1 . . . Structural Interface 1 | . . . . . . . . 1 . . . . . . . . . . . . . . . Robots Hacked 102 | . . . . . . . 20 9 2 2 24 5 . 1 3 3 . 1 1 2 2 14 13 Non-combat 23 | . . . . . . . 6 . . . 9 . . . 2 1 . . . . 1 . 4 Combat 79 | . . . . . . . 14 9 2 2 15 5 . 1 1 2 . 1 1 2 1 14 9 Robot Hacks Applied 102 | . . . . . . . 21 9 2 2 26 2 . . 3 3 . 1 1 2 2 14 14 parse_system 1 | . . . . . . . 1 . . . . . . . . . . . . . . . . find_chute 1 | . . . . . . . . . . . 1 . . . . . . . . . . . . drop_inventory 8 | . . . . . . . 3 . . . 4 . . . 1 . . . . . . . . map_route 1 | . . . . . . . . . . . 1 . . . . . . . . . . . . amplify_resonance 4 | . . . . . . . . . . . . . . . . . . . . . . . 4 disable_weapons 2 | . . . . . . . . 1 . . 1 . . . . . . . . . . . . reboot_system 3 | . . . . . . . . . . . 1 1 . . . . . . . . . . 1 overwrite_iff 23 | . . . . . . . 4 1 . 2 5 . . . . . . 1 1 . 1 3 5 streamctrl_low 1 | . . . . . . . 1 . . . . . . . . . . . . . . . . formatsys_low 5 | . . . . . . . 1 . . . 1 . . . 1 . . . . . . . 2 formatsys_high 53 | . . . . . . . 11 7 2 . 12 1 . . 1 3 . . . 2 1 11 2 Relay Couplers Released 93 | . . . . . . 26 . 20 . 4 . . . . 2 . . . 4 18 . 19 . Machine Destruction 85 | . . . . . . 26 . 16 . 4 . . . . 2 . . . . 18 . 19 . Programmers 8 | . . . . . . . . 4 . . . . . . . . . . 4 . . . . Attached 53 | . . . . . . 2 7 7 1 . 11 1 . . 1 1 . 1 . 3 1 9 8 Merged Code Value 208 | . . . . . . . . . . . . . . . . . . . . . . 175 33 Fabnet Peak Effective % 3 | . . . . . . . . . . . 3 3 3 3 3 1 1 1 . . . . . Autooverrided 4 | . . . . . . . . . . . . 3 . 1 . . . . . . . . . Robots Rewired 40 | . . . . . . 7 1 . . . . 17 . . . . . . . 5 1 9 . Allies Hacked 7 | . . . . . . 1 . 1 . . . . . . . . . . . . . 3 2 Hacks Repelled . | . . . . . . . . . . . . . . . . . . . . . . . . Allies | -11 -10 -10 -10 -9 -8 -8 -7 -7 -7 -7 -6 -6 -6 -6 -6 -5 -5 -5 -4 -4 -3 -3 -3 -------- Run | Yrd Mat Min Exi Min Mat Gar Fac Gar Fac Gar Fac Ext Cet Arc Hub Fac Was Fac Fac Gar Res Gar Qua Total Allies 151 | . . . . 1 . 7 17 8 2 3 23 23 5 1 2 4 1 1 1 9 7 25 11 Largest Group 27 | . . . . 1 . 4 11 7 8 9 9 22 27 23 23 4 3 2 1 8 11 16 15 Highest-Rated Group 1273 | . . . . 31 . 72 222 220 238 268 373 820 1273 1008 1026 221 126 95 65 477 615 1120 1004 Highest-Rated Ally 159 | . . . . 31 . 24 40 32 32 32 90 159 152 96 96 96 65 65 65 95 116 148 148 Total Orders 117 | . . . . . 7 . 21 3 2 . 29 12 3 . 7 . . . . 6 2 24 1 STAY 37 | . . . . . . . 11 2 1 . 10 3 . . 3 . . . . . 1 6 . ROAM 14 | . . . . . . . . . . . 2 . . . . . . . . 3 . 9 . FOLLOW 41 | . . . . . . . 9 1 1 . 10 2 1 . 4 . . . . 3 1 9 . AID 16 | . . . . . . . 1 . . . 5 7 2 . . . . . . . . . 1 DROP 1 | . . . . . . . . . . . 1 . . . . . . . . . . . . COLLECT 1 | . . . . . . . . . . . 1 . . . . . . . . . . . . EXPLORE 6 | . . . . . 6 . . . . . . . . . . . . . . . . . . RETURN 1 | . . . . . 1 . . . . . . . . . . . . . . . . . . Ally Attacks 1082 | . . . . 1 45 27 113 22 9 41 78 160 81 24 73 32 7 1 1 46 63 184 74 Total Damage 35000 | . . . . 20 189 215 1656 424 275 1677 2256 5284 2335 848 2383 1040 65 . 90 2180 2766 6510 4787 Kills 196 | . . . . 1 1 2 13 6 3 8 19 35 11 4 10 5 . . . 12 15 31 20 Allies Corrupted 6 | . . . . . . . . . . . . . . . 5 . . . . . . . 1 Allies Melted . | . . . . . . . . . . . . . . . . . . . . . . . . Intel | -11 -10 -10 -10 -9 -8 -8 -7 -7 -7 -7 -6 -6 -6 -6 -6 -5 -5 -5 -4 -4 -3 -3 -3 ------- Run | Yrd Mat Min Exi Min Mat Gar Fac Gar Fac Gar Fac Ext Cet Arc Hub Fac Was Fac Fac Gar Res Gar Qua Robot Analysis Total . | . . . . . . . . . . . . . . . . . . . . . . . . Derelict Logs Recovered 1 | . . . . 1 . . . . . . . . . . . . . . . . . . . Drone Launches 10 | . . . . . 10 . . . . . . . . . . . . . . . . . . Drone Recoveries 8 | . . . . . 8 . . . . . . . . . . . . . . . . . . Exploration | -11 -10 -10 -10 -9 -8 -8 -7 -7 -7 -7 -6 -6 -6 -6 -6 -5 -5 -5 -4 -4 -3 -3 -3 ------------- Run | Yrd Mat Min Exi Min Mat Gar Fac Gar Fac Gar Fac Ext Cet Arc Hub Fac Was Fac Fac Gar Res Gar Qua Turns Passed 22954 | 82 1082 135 349 594 930 1324 2418 1269 198 1007 2427 1605 601 98 524 778 204 730 515 2572 901 2116 495 Spaces Moved 12243 | 44 513 85 218 351 495 493 1615 807 145 465 1326 848 208 47 277 427 98 386 236 1258 490 1096 315 Core 243 | 7 . . . . . . . . . 3 . . . . . . . . . . . . 233 Treads 8945 | 37 513 85 218 351 495 493 46 . . 22 1232 848 208 47 277 427 98 386 236 1258 490 1096 82 Legs 133 | . . . . . . . . . . 39 94 . . . . . . . . . . . . Wheels 2910 | . . . . . . . 1569 807 145 389 . . . . . . . . . . . . . Hover 12 | . . . . . . . . . . 12 . . . . . . . . . . . . . Flight . | . . . . . . . . . . . . . . . . . . . . . . . . Fastest Speed 50 | 50 160 160 160 160 160 160 115 130 130 115 112 160 160 160 160 160 160 160 160 152 160 160 50 Average Speed 153 | 142 160 160 160 160 160 179 130 130 130 171 156 160 205 160 160 160 160 160 160 160 160 160 78 Slowest Speed 850 | 160 160 160 160 160 160 240 240 130 130 850 187 160 240 160 160 160 160 160 160 240 160 160 160 Overloaded Moves . | . . . . . . . . . . . . . . . . . . . . . . . . Propulsion Burnouts . | . . . . . . . . . . . . . . . . . . . . . . . . Robots Hopped . | . . . . . . . . . . . . . . . . . . . . . . . . Cave-ins Triggered 1 | . . . . . . . . . . . . . . . . . . . . 1 . . . Exploration Rate (%) 51 | 4 96 29 61 63 72 51 32 78 6 84 36 96 73 69 34 17 80 8 7 96 11 98 30 Regions Visited 23 Branch Regions 8 Pre-discovered Areas 2 | . . . 1 1 . . . . . . . . . . . . . . . . . . . Known Exits Taken 8 | . . . . . 1 . 1 . 1 . . . 1 . 1 . . 1 1 . 1 . . Unknown Exits Taken 8 | 1 1 1 1 1 . . . . . . 1 1 . 1 . . . . . . . . . Scrap Searched 2 | . . . . 2 . . . . . . . . . . . . . . . . . . . Spaces Dug 173 | . . . . . . . 1 . . . 8 2 . . 158 . . . . 2 . . 2 Terrain Destroyed 1190 | . 57 . . 18 75 97 1 4 . . 11 6 5 . 316 32 227 174 72 80 . 6 9 Melee 6 | . . . . . . . 1 . . . 1 2 . . . . . . . . . . 2 Projectile 91 | . . . . 1 30 . . 3 . . 3 4 5 . 1 8 7 6 6 4 . 6 7 AOE 1093 | . 57 . . 17 45 97 . 1 . . 7 . . . 315 24 220 168 66 76 . . . Terrain Rammed . | . . . . . . . . . . . . . . . . . . . . . . . . Walls Destroyed . | . . . . . . . . . . . . . . . . . . . . . . . . Machines Disabled . | . . . . . . . . . . . . . . . . . . . . . . . . Actions | -11 -10 -10 -10 -9 -8 -8 -7 -7 -7 -7 -6 -6 -6 -6 -6 -5 -5 -5 -4 -4 -3 -3 -3 --------- Run | Yrd Mat Min Exi Min Mat Gar Fac Gar Fac Gar Fac Ext Cet Arc Hub Fac Was Fac Fac Gar Res Gar Qua Total 15394 | 54 661 84 219 383 605 789 1872 994 152 600 1596 1016 363 70 353 481 109 455 318 1722 603 1400 495 Wait 1405 | . 53 . . 20 47 28 139 88 3 22 124 58 102 23 58 9 . 28 35 306 99 147 16 Move 12224 | 43 512 84 217 350 495 492 1615 806 144 464 1325 847 207 46 276 427 97 385 236 1257 489 1095 315 Hop . | . . . . . . . . . . . . . . . . . . . . . . . . Pick Up 176 | 1 12 . 1 . 12 22 11 19 . 3 16 4 5 1 3 3 . 3 2 22 . 26 10 Fast Attach 141 | 7 7 . . 2 2 10 11 6 . 16 12 2 8 . 1 2 . 4 4 22 1 12 12 Attach 99 | . 1 . . 2 6 7 8 6 . 4 12 3 7 . 3 4 . 1 2 4 2 9 18 Detach 40 | . 1 . . 1 1 2 . 1 . 1 2 1 7 . 2 1 . . 2 5 2 5 6 Swap 77 | . 4 . . . 7 11 6 11 2 4 8 3 1 . 1 2 2 3 2 7 1 1 1 Drop 237 | . 7 . 1 5 11 30 18 19 . 15 20 3 14 . 3 4 1 2 5 28 . 30 21 Fire 642 | 3 64 . . 3 23 36 44 16 3 12 56 68 12 . 6 29 9 29 29 67 8 70 55 Melee 161 | . . . . . 1 50 10 14 . 35 21 22 . . . . . . . . . . 8 Ram . | . . . . . . . . . . . . . . . . . . . . . . . . Kick . | . . . . . . . . . . . . . . . . . . . . . . . . Crush 11 | . . . . . . . 1 . . . . 5 . . . . . . 1 1 1 2 . Escape Stasis 76 | . . . . . . 3 8 8 . 24 . . . . . . . . . . . . 33 Rewire 105 | . . . . . . 98 1 . . . . . . . . . . . . 3 . 3 . Trap . | . . . . . . . . . . . . . . . . . . . . . . . . Miscellaneous . | . . . . . . . . . . . . . . . . . . . . . . . . Route ------- -11/Scrapyard -10/Materials (discovered 4 exits: [*Mat x3] / [*Min]) -10/Mines -10/Exiles -9/Mines -8/Materials (discovered 3 exits: *Fac / [*Sto] / Gar) -8/Garrison (discovered 2 exits: *Fac / [*Mat]) -7/Factory (discovered 2 exits: [*Low] / Gar) -7/Garrison (discovered 2 exits: *Fac x2) -7/Factory -7/Garrison (discovered 3 exits: *Fac x3) -6/Factory (discovered 2 exits: [*Low] / [*Ext]) -6/Extension (discovered 2 exits: *Fac / *Cet) -6/Cetus (discovered 2 exits: *Fac / *Arc) -6/Archives (discovered 2 exits: *Fac / *Hub) -6/Hub_04(d) -5/Factory -5/Waste -5/Factory (discovered 3 exits: *Fac / *Upp / Gar) -4/Factory -4/Garrison (discovered 3 exits: *Res x3) -3/Research -3/Garrison (discovered 3 exits: *Qua x3) -3/Quarantine History --------- Turn | Location | Event 8 | -11/Scrapyard | Discovered new exit (range 16) 83 | -11/Scrapyard | Entered Materials 303 | -10/Materials | Build established: Mutant 391 | -10/Materials | Repaired Lgt. Armor Plating 440 | -10/Materials | Discovered new exit (range 7) 515 | -10/Materials | Discovered new exit (range 12) 580 | -10/Materials | Discovered new exit (range 15) 1067 | -10/Materials | Discovered new exit (range 15) 1165 | -10/Materials | Entered Mines 1246 | -10/Mines | Met a Derelict bent on vengeance 1292 | -10/Mines | Deemed a non-threat by the Exiles lab entrance 1293 | -10/Mines | Discovered new exit (range 5) 1300 | -10/Mines | Entered Exiles 1340 | -10/Exiles | Met 8R-AWN 1366 | -10/Exiles | Met EX-HEX 1412 | -10/Exiles | Met EX-BIN 1430 | -10/Exiles | Aligned with FarCom system 1432 | -10/Exiles | Given EX-Vault access code 1468 | -10/Exiles | Opened EX-Vault 1482 | -10/Exiles | Found AWS/Gauss 1518 | -10/Exiles | Warned to stay clear of 0b10 Research branches 1563 | -10/Exiles | Met EX-DEC 1572 | -10/Exiles | Learned location of Zion (-7) 1633 | -10/Exiles | Discovered new exit (range 10) 1649 | -10/Exiles | Left Exiles lab with AWS/Gauss 1649 | -10/Exiles | Entered Mines 1684 | -9/Mines | Received a Mining Laser from a helpful Derelict 1980 | -9/Mines | Found the Drone Emporium 1993 | -9/Mines | Found Prototype Device 1993 | -9/Mines | Identified Thief Drone Bay 2123 | -9/Mines | Discovered new exit (range 10) 2151 | -9/Mines | Core integrity fell below 50% 2155 | -9/Mines | Core integrity fell below 20% 2163 | -9/Mines | Destroyed YI-UF0 2243 | -9/Mines | Entered Materials 2243 | -8/Materials | Evolved 4 slots: Propulsion x2, Utility x1, Weapon x1 2536 | -8/Materials | Build established: Skirmisher 2757 | -8/Materials | Destroyed 8 combat bots 2857 | -8/Materials | Discovered new exit (range 15) 3064 | -8/Materials | Repaired Lgt. Treads 3099 | -8/Materials | Discovered new exit (range 15) 3173 | -8/Materials | Identified exit to Garrison 3173 | -8/Materials | Entered Garrison 3195 | -8/Garrison | Build established: Mutant 3585 | -8/Garrison | Triggered checkpoint 3635 | -8/Garrison | Garrison Relay disabled 3639 | -8/Garrison | Lost 3 allies 3756 | -8/Garrison | Installed Relay Interface Framework 3854 | -8/Garrison | Triggered checkpoint 3899 | -8/Garrison | Triggered checkpoint 3949 | -8/Garrison | Triggered checkpoint 3991 | -8/Garrison | Destroyed 10 combat bots 4023 | -8/Garrison | Triggered checkpoint 4059 | -8/Garrison | Discovered new exit (range 5) 4178 | -8/Garrison | Build established: Scavenger-Skirmisher 4282 | -8/Garrison | Phase Generator disabled 4282 | -8/Garrison | Discovered new exit (range 7) 4307 | -8/Garrison | Garrison Relay disabled 4315 | -8/Garrison | P-60 Hacker assimilated allied Shotgunner 3c 4353 | -8/Garrison | Garrison Relay disabled 4358 | -8/Garrison | Garrison Relay disabled 4371 | -8/Garrison | Garrison Relay disabled 4497 | -8/Garrison | Entered Factory 4497 | -7/Factory | Accompanied by 1 ally 4497 | -7/Factory | Evolved 2 slots: Utility x2 4750 | -7/Factory | Build established: Bothacker-Mutant 4897 | -7/Factory | First assault squad dispatched 5471 | -7/Factory | Discovered new exit (range 12) 6662 | -7/Factory | Fabricated Recalibrator (x2) 6915 | -7/Factory | Identified exit to Garrison 6915 | -7/Factory | Entered Garrison 6915 | -7/Garrison | Accompanied by 4 allies 6985 | -7/Garrison | Triggered checkpoint 7004 | -7/Garrison | Garrison Relay disabled 7036 | -7/Garrison | Expanded RIF knowledge: Structural Interface 7095 | -7/Garrison | Triggered checkpoint 7155 | -7/Garrison | Triggered checkpoint 7162 | -7/Garrison | Triggered checkpoint 7167 | -7/Garrison | Triggered checkpoint 7199 | -7/Garrison | Destroyed 9 combat bots 7223 | -7/Garrison | Lost 4 allies 7385 | -7/Garrison | Discovered new exit (range 11) 7432 | -7/Garrison | Expanded RIF knowledge: Command Fork 7604 | -7/Garrison | Garrison Relay disabled 7643 | -7/Garrison | Triggered checkpoint 7689 | -7/Garrison | Garrison Relay disabled 7819 | -7/Garrison | Triggered checkpoint 7865 | -7/Garrison | Discovered new exit (range 11) 7954 | -7/Garrison | Triggered checkpoint 8035 | -7/Garrison | Triggered checkpoint 8042 | -7/Garrison | P-60 Hacker assimilated allied Fighter 4a 8071 | -7/Garrison | Garrison Relay disabled 8184 | -7/Garrison | Entered Factory 8184 | -7/Factory | Accompanied by 6 allies 8377 | -7/Factory | Identified exit to Garrison 8382 | -7/Factory | Entered Garrison 8382 | -7/Garrison | Accompanied by 8 allies 8420 | -7/Garrison | Learned Factory security intel 8504 | -7/Garrison | Triggered checkpoint 8529 | -7/Garrison | Lost 9 allies 8546 | -7/Garrison | Lost 7 parts (1p2n2u2w) 8772 | -7/Garrison | Discovered new exit (range 12) 8792 | -7/Garrison | Expanded RIF knowledge: Signal Jamming 8864 | -7/Garrison | Triggered checkpoint 8891 | -7/Garrison | Build established: Scavenger-Mutant 8910 | -7/Garrison | Discovered new exit (range 10) 9206 | -7/Garrison | Garrison Relay disabled 9255 | -7/Garrison | Build established: Mutant 9289 | -7/Garrison | Discovered new exit (range 15) 9389 | -7/Garrison | Entered Factory 9389 | -6/Factory | Evolved 2 slots: Utility x1, Weapon x1 10492 | -6/Factory | Fabricated B-48 Gladiator? 10581 | -6/Factory | Build established: Botlord-Skirmisher 10739 | -6/Factory | Fabricated Imp. Remote Force Field (x2) 10897 | -6/Factory | Cargo convoy interrupted 10943 | -6/Factory | Lost 7 allies 11038 | -6/Factory | Found Exp. Signal Interpreter 11701 | -6/Factory | Discovered new exit (range 7) 11794 | -6/Factory | Discovered new exit (range 6) 11816 | -6/Factory | Entered Extension 11816 | -6/Extension | Accompanied by 9 allies 11836 | -6/Extension | Disrupted transfer network 11896 | -6/Extension | Local machine network offline 12241 | -6/Extension | Spotted B-75 Beast 12260 | -6/Extension | Spotted B-75 Beast 12266 | -6/Extension | Assimilated Beast 5a with formatsys_high 12266 | -6/Extension | Assimilated Beast 5b with formatsys_high 12290 | -6/Extension | Lost 4 allies 12544 | -6/Extension | Build established: Bothacker-Tank 12661 | -6/Extension | Discovered new exit (range 22) 12661 | -6/Extension | Discovered new exit (range 22) 12866 | -6/Extension | First assault squad dispatched 13076 | -6/Extension | Build established: Commander-Tank 13323 | -6/Extension | Rescued A7 13377 | -6/Extension | Found Prototype Protection 13421 | -6/Extension | Entered Cetus 13421 | -6/Cetus | Accompanied by 22 allies (A7) 13426 | -6/Cetus | Acquired a Cetus Manufacturing Module code from A7 13439 | -6/Cetus | Spotted Cetus Guard 13439 | -6/Cetus | Spotted Cetus Guard 13439 | -6/Cetus | Spotted Cetus Guard 13439 | -6/Cetus | Spotted Cetus Guard 13448 | -6/Cetus | Allies destroyed Cetus Guard 13456 | -6/Cetus | Allies destroyed Cetus Guard 13461 | -6/Cetus | Allies destroyed Cetus Guard 13462 | -6/Cetus | Allies destroyed Cetus Guard 13601 | -6/Cetus | Started Cetus Manufacturing Module 13626 | -6/Cetus | Manufactured an Enhanced Grunt 13651 | -6/Cetus | Manufactured an Enhanced Grunt 13676 | -6/Cetus | Manufactured an Enhanced Grunt 13701 | -6/Cetus | Manufactured an Enhanced Grunt 13726 | -6/Cetus | Manufactured an Enhanced Grunt 13760 | -6/Cetus | Discovered new exit (range 21) 13816 | -6/Cetus | Spotted Cetus Guard 13816 | -6/Cetus | Spotted Cetus Guard 13820 | -6/Cetus | Spotted Cetus Guard 13820 | -6/Cetus | Spotted Cetus Guard 13825 | -6/Cetus | Discovered new exit (range 21) 13826 | -6/Cetus | Allies destroyed Cetus Guard 13829 | -6/Cetus | Allies destroyed Cetus Guard 13832 | -6/Cetus | Allies destroyed Cetus Guard 13834 | -6/Cetus | Allies destroyed Cetus Guard 13851 | -6/Cetus | Met Revision 17 13873 | -6/Cetus | Identified exit to Factory 13941 | -6/Cetus | Identified Med. Regenerative Plating 13946 | -6/Cetus | Identified exit to Archives 13988 | -6/Cetus | Murdered A7 13988 | -6/Cetus | Destroyed A7 13992 | -6/Cetus | Extracted ID and sensor layout for unrecognized location from A7's data core 13997 | -6/Cetus | Found Prototype Device 13997 | -6/Cetus | Identified Active Sensor Suite 14022 | -6/Cetus | Entered Archives 14022 | -6/Archives | Accompanied by 22 allies 14026 | -6/Archives | Local machine network offline 14059 | -6/Archives | Discovered exit to Factory (range 14) 14078 | -6/Archives | Discovered new exit (range 13) 14120 | -6/Archives | Entered Hub_04(d) 14120 | -6/Hub_04(d) | Accompanied by 22 allies 14277 | -6/Hub_04(d) | Found Prototype Launcher 14277 | -6/Hub_04(d) | Identified Scatter Rocket Array 14491 | -6/Hub_04(d) | Build established: Commander-Skirmisher 14515 | -6/Hub_04(d) | Network Hub disabled 14541 | -6/Hub_04(d) | Murdered 5 allies 14596 | -6/Hub_04(d) | Discovered exit to Factory (range 9) 14628 | -6/Hub_04(d) | Spotted Lightning 14629 | -6/Hub_04(d) | Spotted Lightning 14639 | -6/Hub_04(d) | Network Hub disabled 14639 | -6/Hub_04(d) | Spotted Lightning 14644 | -6/Hub_04(d) | Entered Factory 14644 | -5/Factory | Accompanied by 2 allies 14644 | -5/Factory | Evolved 2 slots: Power x1, Utility x1 14675 | -5/Factory | Lost 16 allies 14932 | -5/Factory | Build established: Bothacker-Tank 15244 | -5/Factory | First assault squad dispatched 15422 | -5/Factory | Sucked down chute 15422 | -5/Factory | Entered Waste 15423 | -5/Waste | Met a frightened Derelict 15437 | -5/Waste | EMP discharged 15437 | -5/Waste | Spotted C-40 Crusher 15447 | -5/Waste | Destroyed C-40 Crusher 15452 | -5/Waste | 2 allies followed down the chute 15469 | -5/Waste | Spotted C-40 Crusher 15479 | -5/Waste | Destroyed C-40 Crusher 15489 | -5/Waste | Spotted C-40 Crusher 15497 | -5/Waste | Destroyed C-40 Crusher 15531 | -5/Waste | Spotted C-40 Crusher 15534 | -5/Waste | Destroyed C-40 Crusher 15534 | -5/Waste | Spotted C-40 Crusher 15537 | -5/Waste | EMP discharged 15537 | -5/Waste | System corruption reached 10% 15539 | -5/Waste | Destroyed C-40 Crusher 15540 | -5/Waste | Spotted C-40 Crusher 15544 | -5/Waste | Destroyed C-40 Crusher 15595 | -5/Waste | Discovered new exit (range 13) 15626 | -5/Waste | Entered Factory 15626 | -5/Factory | Accompanied by 1 ally 15717 | -5/Factory | Discovered new exit (range 8) 15719 | -5/Factory | Build established: Scavenger-Skirmisher 16023 | -5/Factory | Identified exit to Upper Caves 16068 | -5/Factory | Identified exit to Garrison 16152 | -5/Factory | Discovered new exit (range 11) 16168 | -5/Factory | Identified exit to Factory 16203 | -5/Factory | Repaired Quantum Reactor 16356 | -5/Factory | Entered another Factory area 16356 | -4/Factory | Accompanied by 1 ally 16356 | -4/Factory | Evolved 2 slots: Utility x2 16638 | -4/Factory | First assault squad dispatched 16650 | -4/Factory | Build established: Scavenger-Tank 16823 | -4/Factory | Garrison activated, responded to threat 16858 | -4/Factory | P-70 Sage assimilated allied L-61 Swordsman 16871 | -4/Factory | Identified exit to Garrison 16871 | -4/Factory | Entered Garrison 16871 | -4/Garrison | Warlord forces raided the area 16882 | -4/Garrison | Destroyed 11 combat bots 16893 | -4/Garrison | Triggered checkpoint 16896 | -4/Garrison | Lost 3 parts (2p1w) 16917 | -4/Garrison | Triggered checkpoint 16925 | -4/Garrison | Triggered checkpoint 16970 | -4/Garrison | Lost 4 allies 16970 | -4/Garrison | Triggered checkpoint 17123 | -4/Garrison | Discovered new exit (range 13) 17141 | -4/Garrison | Identified exit to Research 17196 | -4/Garrison | Learned Research security intel 17301 | -4/Garrison | Warlord forces retreated 17404 | -4/Garrison | Garrison Relay disabled 17475 | -4/Garrison | Spotted B-86 Titan 17478 | -4/Garrison | Rewired B-75 Beast 17480 | -4/Garrison | Rewired B-75 Beast 17491 | -4/Garrison | Allies destroyed B-86 Titan 17568 | -4/Garrison | Discovered exit to Research (range 12) 17615 | -4/Garrison | Triggered checkpoint 17617 | -4/Garrison | Allies destroyed Beast 7b 17693 | -4/Garrison | Expanded RIF knowledge: Robot Detection 17873 | -4/Garrison | Triggered checkpoint 17909 | -4/Garrison | Garrison Relay disabled 17929 | -4/Garrison | Spotted B-86 Titan 17989 | -4/Garrison | Crushed by falling debris 17989 | -4/Garrison | System corruption reached 10% 18020 | -4/Garrison | Allies destroyed B-86 Titan 18049 | -4/Garrison | Lost 6 parts (3u3w) 18346 | -4/Garrison | Build established: Botlord-Tank 18445 | -4/Garrison | Phase Generator disabled 18457 | -4/Garrison | Discovered exit to Research (range 12) 18563 | -4/Garrison | Triggered checkpoint 18588 | -4/Garrison | Garrison Relay disabled 18589 | -4/Garrison | Found embedded Infiltrators 18728 | -4/Garrison | Garrison Relay disabled 18849 | -4/Garrison | Triggered checkpoint 18902 | -4/Garrison | Garrison Relay disabled 18931 | -4/Garrison | Triggered checkpoint 19396 | -4/Garrison | Expanded RIF knowledge: Alert ID Control 19443 | -4/Garrison | Entered Research 19443 | -3/Research | Accompanied by 8 allies 19443 | -3/Research | Evolved 2 slots: Propulsion x2 19643 | -3/Research | Revision forces began assault on 0b10 19648 | -3/Research | Met up with Revision 17++ 19781 | -3/Research | Lost 5 allies 19824 | -3/Research | Spotted B-86 Titan 19830 | -3/Research | Rewired B-86 Titan 19870 | -3/Research | Identified exit to Garrison 20046 | -3/Research | Build established: Botlord-Skirmisher 20143 | -3/Research | Research terminal network offline 20343 | -3/Research | Spotted Striker 20343 | -3/Research | Spotted Striker 20344 | -3/Research | Entered Garrison 20344 | -3/Garrison | Accompanied by 3 allies 20428 | -3/Garrison | Triggered checkpoint 20464 | -3/Garrison | Triggered checkpoint 20602 | -3/Garrison | Triggered checkpoint 20602 | -3/Garrison | Triggered checkpoint 20622 | -3/Garrison | Garrison Relay disabled 20648 | -3/Garrison | Lost 3 allies 20693 | -3/Garrison | Expanded RIF knowledge: Code Merge 20868 | -3/Garrison | Triggered checkpoint 20877 | -3/Garrison | Garrison Relay disabled 20989 | -3/Garrison | Triggered checkpoint 20992 | -3/Garrison | Triggered checkpoint 21063 | -3/Garrison | Lost 3 allies 21094 | -3/Garrison | Spotted Executioner 21094 | -3/Garrison | Spotted Executioner 21100 | -3/Garrison | Destroyed Executioner 21116 | -3/Garrison | Allies destroyed Executioner 21130 | -3/Garrison | Found Prototype Processor 21130 | -3/Garrison | Identified Exp. Targeting Computer 21135 | -3/Garrison | Rewired Striker 21139 | -3/Garrison | Rewired Striker 21175 | -3/Garrison | Discovered new exit (range 4) 21179 | -3/Garrison | Identified exit to Quarantine 21334 | -3/Garrison | Garrison Relay disabled 21432 | -3/Garrison | Triggered checkpoint 21494 | -3/Garrison | Triggered checkpoint 21694 | -3/Garrison | Garrison Relay disabled 21725 | -3/Garrison | Discovered exit to Quarantine (range 8) 21746 | -3/Garrison | Spotted B-90 Cyclops 21754 | -3/Garrison | Assimilated Cyclops 8a with formatsys_high 21756 | -3/Garrison | Rewired B-90 Cyclops 21761 | -3/Garrison | Rewired B-86 Titan 21950 | -3/Garrison | Triggered checkpoint 22096 | -3/Garrison | Discovered exit to Quarantine (range 11) 22170 | -3/Garrison | Found Relay Coupler [Proto] 22176 | -3/Garrison | Found Relay Coupler [Proto] 22179 | -3/Garrison | Found Relay Coupler [Proto] 22181 | -3/Garrison | Found Relay Coupler [Proto] 22192 | -3/Garrison | Found Adv. Powered Armor 22248 | -3/Garrison | Triggered checkpoint 22446 | -3/Garrison | Destroyed Titan 8b 22460 | -3/Garrison | Entered Quarantine 22460 | -3/Quarantine | Accompanied by 15 allies 22461 | -3/Quarantine | Maximum security lockdown engaged 22491 | -3/Quarantine | Found Alien Artifact 22491 | -3/Quarantine | Identified Subatomic Replicator 22501 | -3/Quarantine | Used Subatomic Replicator to replicate Relay Coupler [Behemoth] 22601 | -3/Quarantine | Spotted Striker 22611 | -3/Quarantine | P-80 Master assimilated allied Veteran 8d 22615 | -3/Quarantine | P-80 Master assimilated allied Warden 8b 22620 | -3/Quarantine | Spotted Striker 22620 | -3/Quarantine | Allies destroyed Striker 22621 | -3/Quarantine | Spotted Striker 22624 | -3/Quarantine | P-80 Master assimilated allied Champion 8d 22625 | -3/Quarantine | Cryocooling Duct disabled 22633 | -3/Quarantine | Destroyed Striker 22640 | -3/Quarantine | Ambient heat levels rising (+20) 22683 | -3/Quarantine | Lost 18 allies 22719 | -3/Quarantine | Spotted Investigator 22721 | -3/Quarantine | Scanned by Researcher 22726 | -3/Quarantine | Assimilated Investigator with formatsys_high 22757 | -3/Quarantine | Lost 3 allies 22757 | -3/Quarantine | System corruption reached 10% 22770 | -3/Quarantine | Core integrity fell below 50% 22802 | -3/Quarantine | Lost 19 parts (3p3n9u4w) 22848 | -3/Quarantine | Found Alien Artifact 22848 | -3/Quarantine | Identified Phase Armor 22864 | -3/Quarantine | Found Prototype Device 22864 | -3/Quarantine | Identified Exp. EM Disruption Field 22893 | -3/Quarantine | Met incapacitated Sigix Warrior 22893 | -3/Quarantine | Lockdown squad dispatched 22943 | -3/Quarantine | Core integrity fell below 20% 22952 | -3/Quarantine | Found Alien Impact Weapon 22952 | -3/Quarantine | Identified Core Stripper 22955 | -3/Quarantine | Destroyed by P-80 Master with Gamma Rifle Last Messages --------------- 22921_ M-36 Artificer unfolds itself. 22921_ Relay Coupler [Sentry] destroyed. 22926_ Dropped Linear Accelerator. 22926_ Slug penetrates Wall. 22926_ Penetrated by Slug. 22928_ Acquired Phase Shifter. 22933_ Slug penetrates Wall. 22934_ Antigrav Array destroyed. 22935_ Slug penetrates Wall. 22935_ Penetrated by Slug. 22935_ Slug penetrates Wall. 22938_ RMLEYMF:TOR4EQTIBJ74RWF=AIMOX|J/0,KXAR 22942_ Phase Shifter destroyed. 22948_ Suspension Chamber breached. 22951_ Relay Coupler [Proto] destroyed. 22952_ Acquired Alien Impact Weapon. 22952_ Identified Core Stripper. 22953_ Dropped Core Stripper. [Achievement: 30k Club] [Achievement: 40k Club] Map ----- +----------------------------------------------------+ | ??# """ # " ### | | ??# """ # "%" # | | ??# ! # ##########+####### # | | ####+####### # ! # #?# # | | # ???????# # # #?# # | | # ???????# + # """ #?# / | | # ! ??????# # # "! #?# # | | # ####### # ! ]/ """ #?# # | | # + i ####### "" " #?# # | | # # ######"##?????# """"" #?# # | | # * # #??? ?????# #?# ### | | # ?#h#?# """ ???# #?# #?? | | # ?#h#?# ""R" ############### ### | | ###??# #?# "" " # | | ?????# #?# [# | | ?????#h#?# ==! # | | ?????# #?# =!! ! # ###########+#### | | ?????# #?? =!! # #????? ?? | | ?????#C#???? ? # #????# | | ?????#C#????###???# #????# | | ?????#/############ #????# | | ?????#p p # #????# """"""""" | | ?????# p # #????# "" """ | | ?????# pp # #????# | | ?????# """ p """ # ###### # ###### | | ?????# " " p @ # b #? | | ?????#p""" """ + [ ## | | ?????# """ # """ # | | ?????# "" " " "" # ""T" # | | ?????# "" """ "" #! "" # | | ?????# # # | | ?????# # """ ==! | | ?????# # """ ! !=* | | ?????############## [""" %%= | | ??????????????????# !! [=! = !% | | ??????????????????# = = = =%% [ | | ??????????????????# # # # #/!# | | ?????????########## ## %= | | ?????????# # | | ?????????# " # # ! | | ?????????# " " # = ### #### """ | | ?????????# """ # *= !#?# #??? | | ?????????# " + = "###?###??? """ | | ?????????# """ # ]"#?????????? """ | | ?????????# T " # "#?????????? ""? | | ?????????# " # ##?????????? ?? | | ?????????# # #??????????? ?? | | ????????########+## #???????????? ?? | | ????????# # #??????????????? | | ????????# + #??????????????? | +----------------------------------------------------+ Best States ------------- Heat Dissipation 46 Energy Generation 49 Energy Capacity 1100 Matter Stores 300 Matter Capacity 300 Sight Range 22 Robot Scan Range 18 Terrain Scan Range 16 Terrain Scan Density 10 Jamming Range 14 Corruption Containment 8 Corruption Block 7 Armor Coverage 900 Resistance: TH 20 Phase Shifting 5 Evasion (%) 55 Targeting Accuracy 12 Launcher Accuracy 40 Recoil Reduction 6 Kinecelleration 30 Defensive Hacking 14 Relay Coupler Types 6 Relay Coupler Value 325 Item Schematics ----------------- Recalibrator | -7/Factory | Hacked Robot Schematics ------------------ None Fabricated ------------ Recalibrator | x2 | -7/Factory B-48 Gladiator | x3 | -6/Factory | Preloaded Imp. Remote Force Field | x2 | -6/Factory | Preloaded Alien Tech Used ----------------- Subatomic Replicator Phase Armor Core Stripper Achievements -------------- 30k Club 40k Club Revolutionary Research Challenges ------------ None Game ------ Seed HelicalWarpHumpback Manual? 0 Play Time 04:02:56 Cumulative 151.6 hours Start 2024.05.04 @ 13:53:49 End 2024.05.04 @ 18:10:29 Sessions 1 Manual Loads 0 Difficulty Rogue Special Mode None Game No. 151 Rogue 146 Adventurer 5 Explorer 0 Win Type - Total 3 Types 2/0/0/1/0/0/0/0/0 Lore% 53 Gallery% 70 Achievement% 54 Wizard Run 0 Options --------- Layout 1 ASCII 0 Keyboard 0 Movement Arrows Keybinds 0 Fullscreen 1 Font 24/Terminus Map View 50x35 Zoom Use 0% Tactical HUD 1 Map Filters NONE Filters NONE Steam 1 RUN: 7b44bb95-e442-4649-a94a-499dc65108b8